[Event "48th Rilton Cup 2018"]
[Site "Stockholm"]
[Date "2019.01.03"]
[Round "7"]
[White "Vaishali R"]
[Black "Blomqvist, Erik"]
[Result "0-1"]
[ECO "B83"]
[WhiteElo "2354"]
[BlackElo "2497"]
[Annotator "ChessBase"]
[PlyCount "84"]
[EventDate "2018.12.27"]
[EventType "swiss"]
[EventCountry "SWE"]
[SourceTitle "playchess.com"]
[Source "ChessBase"]
[SourceQuality "1"]
[TimeControl "40/5400+30:1800+30"]

1. e4 {[%emt 0:00:00]} c5 {[%emt 0:00:00]} 2. Nf3 {[%emt 0:00:03]} e6 {[%emt 0:00:00]} 3. d4 {[%emt 0:00:03]} cxd4 {[%emt 0:00:00]} 4. Nxd4 {[%emt 0:00:03]} Nc6 {[%emt 0:00:08]} 5. Nc3 {[%emt 0:00:05]} d6 {[%emt 0:00:07]} 6. Be2 {[%emt 0:00:26]} Nf6 {[%emt 0:00:15]} 7. O-O {[%emt 0:00:35]} Be7 {[%emt 0:00:09]} 8. Be3 {[%emt 0:00:13]} O-O {[%emt 0:00:19]} 9. f4 {[%emt 0:00:28]} e5 {[%emt 0:00:30]} 10. fxe5 {[%emt 0:06:57]} dxe5 {[%emt 0:00:45]} 11. Nf5 {[%emt 0:00:14]} Bxf5 {[%emt 0:00:30]} 12. Rxf5 {[%emt 0:00:12]} Rc8 {[%emt 0:12:17]} 13. Bd3 {[%emt 0:07:02]} Nd7 {[%emt 0:02:48]} 14. Nd5 {[%emt 0:18:25]} Bc5 {[%emt 0:01:18]} 15. Qd2 {[%emt 0:14:21]} Ne7 {[%emt 0:09:57]} 16. Nxe7+ {[%emt 0:01:34]} Qxe7 {[%emt 0:04:49]} 17. Raf1 {[%emt 0:01:22]} g6 {[%emt 0:06:59]} 18. R5f2 {[%emt 0:01:52]} a6 {[%emt 0:05:31]} 19. c3 {[%emt 0:07:15]} Bxe3 {[%emt 0:14:20]} 20. Qxe3 {[%emt 0:00:03]} Kg7 {[%emt 0:00:27]} 21. Bc2 {[%emt 0:02:27]} Nc5 {[%emt 0:02:51]} 22. b4 {[%emt 0:16:30]} Ne6 {[%emt 0:00:14]} 23. Bb3 {[%emt 0:00:26]} h5 {[%emt 0:06:43]} 24. g3 {[%emt 0:04:12]} h4 {[%emt 0:05:32]} 25. Bd5 {[%emt 0:07:10]} b5 {[%emt 0:07:12]} 26. Kg2 {[%emt 0:06:57]} Rc7 {[%emt 0:07:37]} 27. Rf3 {[%emt 0:02:11]} f6 {[%emt 0:09:56]} 28. R3f2 {[%emt 0:01:50]} hxg3 {[%emt 0:01:27]} 29. hxg3 {[%emt 0:00:08]} Ng5 {[%emt 0:00:17]} 30. Rh1 {[%emt 0:01:15]} Rfc8 {[%emt 0:00:30]} 31. Rc1 {[%emt 0:00:34]} Qd7 {[%emt 0:00:32]} 32. Rh1 {[%emt 0:00:34]} Rxc3 {[%emt 0:00:50]} 33. Qe2 {[%emt 0:00:30]} Rh8 {[%emt 0:01:03]} 34. Rff1 {[%emt 0:00:31]} Rxh1 {[%emt 0:00:29]} 35. Rxh1 {[%emt 0:00:03]} Qc8 {[%emt 0:00:19]} 36. Bb3 {[%emt 0:00:32]} Qd7 {[%emt 0:00:34]} 37. Bd5 {[%emt 0:00:51]} Qa7 {[%emt 0:00:30]} 38. Rd1 {[%emt 0:00:29]} Qc7 {[%emt 0:00:29]} 39. Rd2 {[%emt 0:00:33]} Qc8 {[%emt 0:00:13]} 40. g4 {[%emt 0:00:31]} Nh3 {[%emt 0:00:47]} 41. Qd1 {[%emt 0:01:45]} Nf4+ {[%emt 0:02:22]} 42. Kf2 {[%emt 0:00:13]} Qh8 {[%emt 0:00:27]} 0-1

[Event "48th Rilton Cup 2018"]
[Site "Stockholm"]
[Date "2019.01.03"]
[Round "7"]
[White "Bellon Lopez, Juan Manuel"]
[Black "Lalith Babu M R"]
[Result "0-1"]
[ECO "A45"]
[WhiteElo "2349"]
[BlackElo "2529"]
[Annotator "ChessBase"]
[PlyCount "66"]
[EventDate "2018.12.27"]
[EventType "swiss"]
[EventCountry "SWE"]
[SourceTitle "playchess.com"]
[Source "ChessBase"]
[SourceQuality "1"]
[TimeControl "40/5400+30:1800+30"]

1. d4 {[%emt 0:01:11]} Nf6 {[%emt 0:00:00]} 2. Bg5 {[%emt 0:00:16]} c5 {[%emt 0:00:24]} 3. d5 {[%emt 0:01:01]} Ne4 {[%emt 0:00:06]} 4. h4 {[%emt 0:00:36]} Qb6 {[%emt 0:02:08]} 5. Nd2 {[%emt 0:01:11]} Nxd2 {[%emt 0:01:26]} 6. Bxd2 {[%emt 0:00:11]} Qxb2 {[%emt 0:01:56]} 7. e4 {[%emt 0:00:22]} Qb6 {[%emt 0:02:23]} 8. Bc3 {[%emt 0:04:02]} d6 {[%emt 0:01:25]} 9. Rb1 {[%emt 0:04:07]} Qc7 {[%emt 0:00:29]} 10. h5 {[%emt 0:01:19]} e5 {[%emt 0:03:34]} 11. f4 {[%emt 0:08:51]} Nd7 {[%emt 0:07:34]} 12. f5 {[%emt 0:04:42]} Nf6 {[%emt 0:01:01]} 13. Bb5+ {[%emt 0:12:30]} Bd7 {[%emt 0:04:33]} 14. Qd3 {[%emt 0:06:24]} a6 {[%emt 0:04:28]} 15. Bxd7+ {[%emt 0:00:06]} Qxd7 {[%emt 0:00:04]} 16. Nf3 {[%emt 0:03:25]} Be7 {[%emt 0:02:29]} 17. Nd2 {[%emt 0:00:52]} b5 {[%emt 0:00:10]} 18. Ba5 {[%emt 0:01:27]} h6 {[%emt 0:11:40]} 19. Qe2 {[%emt 0:09:11]} O-O {[%emt 0:05:16]} 20. a3 {[%emt 0:04:06]} Bd8 {[%emt 0:01:14]} 21. Bxd8 {[%emt 0:01:54]} Qxd8 {[%emt 0:00:09]} 22. Rb3 {[%emt 0:01:17]} c4 {[%emt 0:01:56]} 23. Rg3 {[%emt 0:00:28]} Qb6 {[%emt 0:01:39]} 24. Rh4 {[%emt 0:06:34]} Rac8 {[%emt 0:04:51]} 25. Rhg4 {[%emt 0:01:01]} Kh8 {[%emt 0:00:26]} 26. Rxg7 {[%emt 0:00:39]} Qg1+ {[%emt 0:00:48]} 27. Nf1 {[%emt 0:00:32]} c3 {[%emt 0:00:24]} 28. Qf3 {[%emt 0:04:04]} Qd4 {[%emt 0:09:22]} 29. R3g4 {[%emt 0:05:48]} Nxg4 {[%emt 0:01:07]} 30. Rxg4 {[%emt 0:05:17]} Rg8 {[%emt 0:00:41]} 31. Rxg8+ {[%emt 0:06:06]} Rxg8 {[%emt 0:00:36]} 32. g4 {[%emt 0:00:28]} f6 {[%emt 0:00:42]} 33. Qe3 {[%emt 0:00:40]} Rxg4 {[%emt 0:02:20]} 0-1

[Event "48th Rilton Cup 2018"]
[Site "Stockholm"]
[Date "2019.01.04"]
[Round "8"]
[White "Lagarde, Maxime"]
[Black "Hillarp Persson, Tiger"]
[Result "0-1"]
[ECO "B42"]
[WhiteElo "2616"]
[BlackElo "2546"]
[Annotator "ChessBase"]
[PlyCount "86"]
[EventDate "2018.12.27"]
[EventType "swiss"]
[EventCountry "SWE"]
[SourceTitle "playchess.com"]
[Source "ChessBase"]
[SourceQuality "1"]
[TimeControl "40/5400+30:1800+30"]

1. e4 {[%emt 0:07:18]} c5 {[%emt 0:00:00]} 2. Nf3 {[%emt 0:01:40]} e6 {[%emt 0:00:00]} 3. d4 {[%emt 0:00:13]} cxd4 {[%emt 0:00:00]} 4. Nxd4 {[%emt 0:00:02]} a6 {[%emt 0:00:00]} 5. Bd3 {[%emt 0:00:14]} Bc5 {[%emt 0:00:05]} 6. Nb3 {[%emt 0:00:11]} Be7 {[%emt 0:00:07]} 7. Qg4 {[%emt 0:00:16]} g6 {[%emt 0:00:07]} 8. Nc3 {[%emt 0:01:35]} d6 {[%emt 0:01:02]} 9. Qe2 {[%emt 0:08:54]} Nd7 {[%emt 0:02:05]} 10. O-O {[%emt 0:02:10]} Qc7 {[%emt 0:00:57]} 11. Kh1 {[%emt 0:05:00]} h5 {[%emt 0:02:57]} 12. a4 {[%emt 0:11:17]} b6 {[%emt 0:00:07]} 13. f4 {[%emt 0:07:56]} Ngf6 {[%emt 0:02:17]} 14. Bd2 {[%emt 0:09:23]} Bb7 {[%emt 0:06:11]} 15. Rae1 {[%emt 0:01:27]} h4 {[%emt 0:12:42]} 16. Kg1 {[%emt 0:06:52]} h3 {[%emt 0:11:04]} 17. g3 {[%emt 0:06:56]} Kf8 {[%emt 0:26:16]} 18. Nd4 {[%emt 0:12:19]} Qc5 {[%emt 0:05:47]} 19. Be3 {[%emt 0:00:05]} Qh5 {[%emt 0:00:21]} 20. Nf3 {[%emt 0:04:51]} Ng4 {[%emt 0:07:19]} 21. Bd2 {[%emt 0:01:06]} Nc5 {[%emt 0:02:20]} 22. Ng5 {[%emt 0:06:00]} Kg7 {[%emt 0:07:20]} 23. Nd1 {[%emt 0:02:58]} f6 {[%emt 0:04:18]} 24. Bc3 {[%emt 0:02:33]} e5 {[%emt 0:00:55]} 25. Nf3 {[%emt 0:00:33]} Nxa4 {[%emt 0:01:28]} 26. Bb4 {[%emt 0:00:06]} Nc5 {[%emt 0:00:15]} 27. Nc3 {[%emt 0:00:35]} Rhe8 {[%emt 0:01:08]} 28. f5 {[%emt 0:00:21]} d5 {[%emt 0:02:19]} 29. Ba3 {[%emt 0:01:00]} dxe4 {[%emt 0:01:55]} 30. Nxe4 {[%emt 0:00:03]} Nxe4 {[%emt 0:00:27]} 31. Bxe4 {[%emt 0:00:19]} Bxe4 {[%emt 0:00:25]} 32. Qxe4 {[%emt 0:00:56]} gxf5 {[%emt 0:01:33]} 33. Qb7 {[%emt 0:00:46]} Qf7 {[%emt 0:00:07]} 34. Bxe7 {[%emt 0:00:31]} Qxe7 {[%emt 0:00:33]} 35. Qxb6 {[%emt 0:00:28]} Rab8 {[%emt 0:01:18]} 36. Qxa6 {[%emt 0:00:33]} Qc5+ {[%emt 0:00:18]} 37. Kh1 {[%emt 0:00:02]} Rxb2 {[%emt 0:00:36]} 38. Rd1 {[%emt 0:00:42]} Rxc2 {[%emt 0:01:10]} 39. Rd7+ {[%emt 0:00:31]} Re7 {[%emt 0:00:24]} 40. Qb7 {[%emt 0:00:11]} Rxd7 {[%emt 0:01:02]} 41. Qxd7+ {[%emt 0:30:05]} Kh6 {[%emt 0:05:00]} 42. Qd8 {[%emt 0:00:00]} Qc8 {[%emt 0:07:30]} 43. Qd6 {[%emt 0:00:00]} Qa8 {[%emt 0:00:49]} 0-1

[Event "48th Rilton Cup 2018"]
[Site "Stockholm"]
[Date "2019.01.04"]
[Round "8"]
[White "Karthikeyan, Murali"]
[Black "Valsecchi, Alessio"]
[Result "1/2-1/2"]
[ECO "B40"]
[WhiteElo "2591"]
[BlackElo "2497"]
[Annotator "ChessBase"]
[PlyCount "82"]
[EventDate "2018.12.27"]
[EventType "swiss"]
[EventCountry "SWE"]
[SourceTitle "playchess.com"]
[Source "ChessBase"]
[SourceQuality "1"]
[TimeControl "40/5400+30:1800+30"]

1. e4 {[%emt 0:00:00]} c5 {[%emt 0:01:48]} 2. Nf3 {[%emt 0:00:00]} e6 {[%emt 0:00:06]} 3. d4 {[%emt 0:00:00]} cxd4 {[%emt 0:00:07]} 4. Nxd4 {[%emt 0:00:02]} Nf6 {[%emt 0:00:07]} 5. Bd3 {[%emt 0:01:29]} Nc6 {[%emt 0:00:48]} 6. Nxc6 {[%emt 0:00:38]} bxc6 {[%emt 0:00:33]} 7. O-O {[%emt 0:02:16]} d5 {[%emt 0:00:26]} 8. Nd2 {[%emt 0:05:23]} Be7 {[%emt 0:00:46]} 9. e5 {[%emt 0:04:34]} Nd7 {[%emt 0:01:15]} 10. Nf3 {[%emt 0:00:41]} a5 {[%emt 0:04:10]} 11. Re1 {[%emt 0:02:29]} Ba6 {[%emt 0:06:58]} 12. Nd4 {[%emt 0:12:44]} Bxd3 {[%emt 0:06:29]} 13. cxd3 {[%emt 0:03:15]} Qb6 {[%emt 0:00:55]} 14. Qg4 {[%emt 0:02:07]} g6 {[%emt 0:04:11]} 15. Nf3 {[%emt 0:04:38]} h5 {[%emt 0:04:43]} 16. Qg3 {[%emt 0:13:21]} h4 {[%emt 0:09:51]} 17. Qg4 {[%emt 0:06:11]} c5 {[%emt 0:03:25]} 18. Bg5 {[%emt 0:05:55]} Qb4 {[%emt 0:04:05]} 19. d4 {[%emt 0:02:37]} Bxg5 {[%emt 0:05:16]} 20. Qxg5 {[%emt 0:04:09]} cxd4 {[%emt 0:02:41]} 21. Rad1 {[%emt 0:03:01]} Rh5 {[%emt 0:07:20]} 22. Qc1 {[%emt 0:02:00]} Rb8 {[%emt 0:02:20]} 23. b3 {[%emt 0:03:39]} Qc3 {[%emt 0:01:57]} 24. Qf4 {[%emt 0:01:12]} d3 {[%emt 0:05:28]} 25. Ng5 {[%emt 0:01:53]} Kd8 {[%emt 0:00:15]} 26. Nf3 {[%emt 0:11:18]} Ke8 {[%emt 0:01:15]} 27. Qe3 {[%emt 0:01:15]} h3 {[%emt 0:05:43]} 28. Rxd3 {[%emt 0:00:18]} Qc5 {[%emt 0:00:25]} 29. g4 {[%emt 0:01:30]} Rh8 {[%emt 0:05:12]} 30. Nd4 {[%emt 0:02:12]} Rc8 {[%emt 0:00:38]} 31. Qf4 {[%emt 0:02:09]} Qb4 {[%emt 0:01:56]} 32. Kf1 {[%emt 0:01:21]} Qb6 {[%emt 0:05:07]} 33. a4 {[%emt 0:00:53]} Qb4 {[%emt 0:00:56]} 34. Rf3 {[%emt 0:01:12]} Rh7 {[%emt 0:00:45]} 35. Qe3 {[%emt 0:00:31]} Rc5 {[%emt 0:02:18]} 36. Nb5 {[%emt 0:00:26]} Qxg4 {[%emt 0:01:03]} 37. Rg3 {[%emt 0:00:28]} Qh4 {[%emt 0:01:30]} 38. Qd2 {[%emt 0:00:37]} Qb4 {[%emt 0:02:14]} 39. Qg5 {[%emt 0:00:34]} Qh4 {[%emt 0:02:31]} 40. Qd2 {[%emt 0:00:16]} Qb4 {[%emt 0:01:38]} 41. Qg5 {[%emt 0:06:31]} Qh4 {[%emt 0:00:36]} 1/2-1/2

[Event "48th Rilton Cup 2018"]
[Site "Stockholm"]
[Date "2019.01.04"]
[Round "8"]
[White "Santos Latasa, Jaime"]
[Black "Rakesh Kumar Jena"]
[Result "1-0"]
[ECO "A42"]
[WhiteElo "2584"]
[BlackElo "2398"]
[Annotator "RC"]
[PlyCount "93"]
[EventDate "2018.12.27"]
[EventType "swiss"]
[EventCountry "SWE"]
[SourceTitle "playchess.com"]
[Source "ChessBase"]
[SourceQuality "1"]
[TimeControl "40/5400+30:1800+30"]

1. e4 {[%emt 0:00:00]} d6 {[%emt 0:00:02]} 2. d4 {[%emt 0:00:00]} g6 {[%emt 0:00:11]} 3. c4 {[%emt 0:00:00]} Bg7 {[%emt 0:00:18]} 4. Nc3 {[%emt 0:00:00]} Nc6 {[%emt 0:02:14]} 5. d5 {[%emt 0:01:51]} Ne5 {[%emt 0:01:17]} 6. Be2 {[%emt 0:02:26]} Nf6 {[%emt 0:00:58]} 7. f4 {[%emt 0:03:40]} Ned7 {[%emt 0:00:19]} 8. Nf3 {[%emt 0:00:08]} O-O {[%emt 0:00:06]} 9. O-O {[%emt 0:00:26]} c6 {[%emt 0:00:20]} 10. Be3 {[%emt 0:00:58]} cxd5 {[%emt 0:09:15]} 11. exd5 {[%emt 0:01:18]} Ng4 {[%emt 0:06:31]} 12. Bd4 {[%emt 0:00:25]} Bxd4+ {[%emt 0:00:07]} 13. Qxd4 {[%emt 0:00:08]} Qb6 {[%emt 0:00:03]} 14. b3 {[%emt 0:02:15]} Ne3 {[%emt 0:04:41]} 15. Rfc1 {[%emt 0:01:04]} Qxd4 {[%emt 0:00:06]} 16. Nxd4 {[%emt 0:00:07]} Nf6 {[%emt 0:00:29]} 17. Bf3 {[%emt 0:01:15]} Nf5 {[%emt 0:01:00]} 18. Nxf5 {[%emt 0:00:32]} Bxf5 {[%emt 0:02:35]} 19. Re1 {[%emt 0:00:12]} Rae8 {[%emt 0:03:21]} 20. Re3 {[%emt 0:01:15]} Kg7 {[%emt 0:00:05]} 21. Rae1 {[%emt 0:09:21]} Ng8 {[%emt 0:01:48]} 22. Nb5 {[%emt 0:00:54]} Bd7 {[%emt 0:00:08]} 23. Nd4 {[%emt 0:00:41]} Rc8 {[%emt 0:06:33]} 24. a4 {[%emt 0:00:48]} Rfe8 {[%emt 0:00:29]} 25. Kf2 {[%emt 0:01:13]} a6 {[%emt 0:01:48]} 26. g4 {[%emt 0:04:44]} Rc7 {[%emt 0:02:02]} 27. g5 {[%emt 0:00:36]} Rb8 {[%emt 0:05:25]} 28. Be2 {[%emt 0:00:41]} Rf8 {[%emt 0:04:13]} 29. Kg3 {[%emt 0:01:39]} h6 {[%emt 0:04:41]} 30. h4 {[%emt 0:01:28]} Bc8 {[%emt 0:06:29]} 31. Bd3 {[%emt 0:00:58]} f5 {[%emt 0:04:36]} 32. Bf1 {[%emt 0:04:45]} h5 {[%emt 0:04:39]} 33. a5 {[%emt 0:00:20]} e5 {[%emt 0:03:43]} 34. dxe6 {[%emt 0:00:52]} Ne7 {[%emt 0:00:07]} 35. Rd1 {[%emt 0:01:27]} d5 {[%emt 0:01:13]} 36. Re5 {[%emt 0:03:06]} dxc4 {[%emt 0:00:32]} 37. Bxc4 {[%emt 0:00:06]} Rd8 {[%emt 0:00:07]} 38. Kf2 {[%emt 0:00:11]} Kf8 {[%emt 0:04:48]} 39. Ke1 {[%emt 0:01:05]} Rd6 {[%emt 0:01:40]} 40. Rd2 {[%emt 0:03:53]} b5 {[%emt 0:01:39]} 41. axb6 {[%emt 0:31:54]} Rxb6 {[%emt 0:30:02]} 42. Kf2 {[%emt 0:03:00]} Rd6 {[%emt 0:01:03]} 43. Ke3 {[%emt 0:00:11]} Bb7 {[%emt 0:01:24]} 44. Nxf5 {[%emt 0:01:48]} Rxd2 {[%emt 0:01:01]} 45. Nxe7 {[%emt 0:00:06]} Rd1 {[%emt 0:02:47]} 46. Nxg6+ {[%emt 0:00:08]} Ke8 {[%emt 0:00:03]} 47. Rf5 {[%emt 0:00:19]} 1-0

[Event "48th Rilton Cup 2018"]
[Site "Stockholm"]
[Date "2019.01.04"]
[Round "8"]
[White "Gopal G.N."]
[Black "Liang, Awonder"]
[Result "1/2-1/2"]
[ECO "C65"]
[WhiteElo "2582"]
[BlackElo "2589"]
[Annotator "ChessBase"]
[PlyCount "40"]
[EventDate "2018.12.27"]
[EventType "swiss"]
[EventCountry "SWE"]
[SourceTitle "playchess.com"]
[Source "ChessBase"]
[SourceQuality "1"]
[TimeControl "40/5400+30:1800+30"]

1. e4 {[%emt 0:00:00]} e5 {[%emt 0:00:00]} 2. Nf3 {[%emt 0:00:00]} Nc6 {[%emt 0:00:01]} 3. Bb5 {[%emt 0:00:00]} Nf6 {[%emt 0:00:05]} 4. d3 {[%emt 0:00:00]} Ne7 {[%emt 0:00:06]} 5. c3 {[%emt 0:02:57]} c6 {[%emt 0:02:42]} 6. Ba4 {[%emt 0:00:32]} Ng6 {[%emt 0:02:21]} 7. O-O {[%emt 0:00:19]} Be7 {[%emt 0:00:34]} 8. Re1 {[%emt 0:07:17]} O-O {[%emt 0:00:09]} 9. h3 {[%emt 0:12:09]} Re8 {[%emt 0:09:33]} 10. Bb3 {[%emt 0:05:01]} Bf8 {[%emt 0:01:51]} 11. d4 {[%emt 0:05:07]} d5 {[%emt 0:11:56]} 12. Bg5 {[%emt 0:09:12]} dxe4 {[%emt 0:03:11]} 13. Rxe4 {[%emt 0:05:22]} Bf5 {[%emt 0:01:29]} 14. Nxe5 {[%emt 0:05:00]} Bxe4 {[%emt 0:04:27]} 15. Nxf7 {[%emt 0:01:15]} Qc7 {[%emt 0:00:21]} 16. Nh6+ {[%emt 0:00:15]} Kh8 {[%emt 0:00:01]} 17. Nf7+ {[%emt 0:00:08]} Kg8 {[%emt 0:00:09]} 18. Nh6+ {[%emt 0:01:17]} Kh8 {[%emt 0:00:02]} 19. Nf7+ {[%emt 0:00:15]} Kg8 {[%emt 0:00:04]} 20. Nh6+ {[%emt 0:00:03]} Kh8 {[%emt 0:00:04]} 1/2-1/2

[Event "48th Rilton Cup 2018"]
[Site "Stockholm"]
[Date "2019.01.04"]
[Round "8"]
[White "Sengupta, Deep"]
[Black "Hauge, Lars Oskar"]
[Result "1-0"]
[ECO "B84"]
[WhiteElo "2565"]
[BlackElo "2466"]
[Annotator "ChessBase"]
[PlyCount "49"]
[EventDate "2018.12.27"]
[EventType "swiss"]
[EventCountry "SWE"]
[SourceTitle "playchess.com"]
[Source "ChessBase"]
[SourceQuality "1"]
[TimeControl "40/5400+30:1800+30"]

1. e4 {[%emt 0:00:00]} c5 {[%emt 0:02:28]} 2. Nf3 {[%emt 0:00:00]} d6 {[%emt 0:00:11]} 3. d4 {[%emt 0:00:00]} cxd4 {[%emt 0:00:02]} 4. Nxd4 {[%emt 0:00:00]} Nf6 {[%emt 0:00:06]} 5. Nc3 {[%emt 0:00:00]} a6 {[%emt 0:00:02]} 6. Be2 {[%emt 0:00:02]} e6 {[%emt 0:03:58]} 7. O-O {[%emt 0:00:51]} Be7 {[%emt 0:03:57]} 8. f4 {[%emt 0:00:33]} Qc7 {[%emt 0:01:52]} 9. Kh1 {[%emt 0:04:33]} Nc6 {[%emt 0:05:02]} 10. Be3 {[%emt 0:00:41]} O-O {[%emt 0:00:37]} 11. a4 {[%emt 0:00:28]} Bd7 {[%emt 0:08:19]} 12. Nb3 {[%emt 0:00:32]} Na5 {[%emt 0:15:36]} 13. e5 {[%emt 0:17:04]} Ne8 {[%emt 0:02:12]} 14. Nxa5 {[%emt 0:12:34]} Qxa5 {[%emt 0:01:30]} 15. Ne4 {[%emt 0:02:07]} Qc7 {[%emt 0:00:53]} 16. a5 {[%emt 0:00:30]} d5 {[%emt 0:23:35]} 17. Nd2 {[%emt 0:04:35]} Bb5 {[%emt 0:00:38]} 18. Bxb5 {[%emt 0:04:33]} axb5 {[%emt 0:00:05]} 19. Bb6 {[%emt 0:00:05]} Qd7 {[%emt 0:00:12]} 20. Nb3 {[%emt 0:00:33]} Nc7 {[%emt 0:00:58]} 21. Qd3 {[%emt 0:04:22]} Na6 {[%emt 0:00:50]} 22. Nd4 {[%emt 0:01:37]} Rac8 {[%emt 0:02:56]} 23. f5 {[%emt 0:02:31]} exf5 {[%emt 0:00:53]} 24. Nxf5 {[%emt 0:00:06]} g6 {[%emt 0:01:35]} 25. Qxd5 {[%emt 0:07:47]} 1-0

[Event "48th Rilton Cup 2018"]
[Site "Stockholm"]
[Date "2019.01.04"]
[Round "8"]
[White "Debashis, Das"]
[Black "Urkedal, Frode Olav Olsen"]
[Result "0-1"]
[ECO "E14"]
[WhiteElo "2544"]
[BlackElo "2537"]
[Annotator "ChessBase"]
[PlyCount "46"]
[EventDate "2018.12.27"]
[EventType "swiss"]
[EventCountry "SWE"]
[SourceTitle "playchess.com"]
[Source "ChessBase"]
[SourceQuality "1"]
[TimeControl "40/5400+30:1800+30"]

1. d4 {[%emt 0:00:00]} Nf6 {[%emt 0:00:00]} 2. c4 {[%emt 0:00:00]} e6 {[%emt 0:00:00]} 3. Nf3 {[%emt 0:00:00]} b6 {[%emt 0:00:00]} 4. e3 {[%emt 0:00:03]} Bb7 {[%emt 0:00:28]} 5. Bd3 {[%emt 0:02:02]} d5 {[%emt 0:00:32]} 6. O-O {[%emt 0:02:35]} Bd6 {[%emt 0:01:31]} 7. b3 {[%emt 0:00:14]} O-O {[%emt 0:00:12]} 8. Bb2 {[%emt 0:00:04]} Nbd7 {[%emt 0:01:23]} 9. Nbd2 {[%emt 0:00:10]} Ne4 {[%emt 0:06:18]} 10. Rc1 {[%emt 0:00:29]} h6 {[%emt 0:18:25]} 11. cxd5 {[%emt 0:08:39]} exd5 {[%emt 0:00:19]} 12. Ne5 {[%emt 0:01:15]} c5 {[%emt 0:29:50]} 13. Nxe4 {[%emt 0:11:33]} dxe4 {[%emt 0:00:48]} 14. Bc4 {[%emt 0:00:18]} Nxe5 {[%emt 0:09:55]} 15. dxe5 {[%emt 0:00:15]} Bc7 {[%emt 0:00:05]} 16. Qg4 {[%emt 0:04:40]} Qg5 {[%emt 0:02:52]} 17. Qd7 {[%emt 0:02:16]} Rac8 {[%emt 0:00:05]} 18. Rcd1 {[%emt 0:02:41]} Qh5 {[%emt 0:00:43]} 19. g4 {[%emt 0:20:21]} Qh4 {[%emt 0:03:02]} 20. Qf5 {[%emt 0:09:59]} Rce8 {[%emt 0:05:58]} 21. Rd7 {[%emt 0:22:42]} Bc8 {[%emt 0:00:14]} 22. Rfd1 {[%emt 0:01:14]} Bxe5 {[%emt 0:12:51]} 23. Bxe5 {[%emt 0:09:23]} Bxd7 {[%emt 0:00:51]} 0-1

[Event "48th Rilton Cup 2018"]
[Site "Stockholm"]
[Date "2019.01.04"]
[Round "8"]
[White "Lalith Babu M R"]
[Black "Donchenko, Alexander"]
[Result "1-0"]
[ECO "E07"]
[WhiteElo "2529"]
[BlackElo "2604"]
[Annotator "ChessBase"]
[PlyCount "69"]
[EventDate "2018.12.27"]
[EventType "swiss"]
[EventCountry "SWE"]
[SourceTitle "playchess.com"]
[Source "ChessBase"]
[SourceQuality "1"]
[TimeControl "40/5400+30:1800+30"]

1. d4 Nf6 2. Nf3 d5 3. c4 e6 4. g3 Be7 5. Bg2 O-O 6. O-O Nbd7 7. Nc3 dxc4 8. a4 c6 9. e4 e5 10. dxe5 Ng4 11. e6 fxe6 12. Bf4 Bf6 13. Qe2 Nge5 14. Nxe5 Nxe5 15. Rfd1 Nd3 16. e5 Be7 17. Be3 Qa5 18. f4 Bd7 19. Ne4 Rad8 20. b3 Nc5 21. Qxc4 Nxe4 22. Rxd7 {[%emt 1:12:20]} Bc5 {[%emt 1:19:11]} 23. Qxe6+ {[%emt 0:04:08]} Kh8 {[%emt 0:00:02]} 24. Bxe4 {[%emt 0:00:19]} Bxe3+ {[%emt 0:00:17]} 25. Kh1 {[%emt 0:00:38]} Qb4 {[%emt 0:02:21]} 26. Bg2 {[%emt 0:01:04]} Qc3 {[%emt 0:03:53]} 27. Rf1 {[%emt 0:01:34]} Qb4 {[%emt 0:07:52]} 28. Rxd8 {[%emt 0:05:03]} Rxd8 {[%emt 0:00:02]} 29. f5 {[%emt 0:00:05]} Qf8 {[%emt 0:05:53]} 30. f6 {[%emt 0:01:00]} gxf6 {[%emt 0:00:05]} 31. exf6 {[%emt 0:00:04]} Bg5 32. f7 Qe7 33. Qf5 Kg7 34. Be4 Rh8 35. f8=Q+ 1-0

[Event "48th Rilton Cup 2018"]
[Site "Stockholm"]
[Date "2019.01.04"]
[Round "8"]
[White "Santos Ruiz, Miguel"]
[Black "Koykka, Pekka"]
[Result "1-0"]
[ECO "B13"]
[WhiteElo "2523"]
[BlackElo "2405"]
[Annotator "ChessBase"]
[PlyCount "97"]
[EventDate "2018.12.27"]
[EventType "swiss"]
[EventCountry "SWE"]
[SourceTitle "playchess.com"]
[Source "ChessBase"]
[SourceQuality "1"]
[TimeControl "40/5400+30:1800+30"]

1. e4 {[%emt 0:00:00]} c6 {[%emt 0:00:00]} 2. d4 {[%emt 0:00:00]} d5 {[%emt 0:00:00]} 3. exd5 {[%emt 0:00:07]} cxd5 {[%emt 0:00:00]} 4. Bd3 {[%emt 0:00:09]} Nc6 {[%emt 0:00:06]} 5. c3 {[%emt 0:00:04]} Qc7 {[%emt 0:00:24]} 6. h3 {[%emt 0:04:52]} Nf6 {[%emt 0:01:55]} 7. Nf3 {[%emt 0:00:34]} g6 {[%emt 0:00:17]} 8. Qc2 {[%emt 0:00:29]} Bg7 {[%emt 0:02:43]} 9. O-O {[%emt 0:04:41]} O-O {[%emt 0:00:10]} 10. Re1 {[%emt 0:00:37]} Nd7 {[%emt 0:05:41]} 11. Be3 {[%emt 0:17:38]} e5 {[%emt 0:09:43]} 12. dxe5 {[%emt 0:01:23]} Ndxe5 {[%emt 0:00:11]} 13. Nbd2 {[%emt 0:07:23]} Re8 {[%emt 0:10:23]} 14. Nxe5 {[%emt 0:17:32]} Nxe5 {[%emt 0:01:55]} 15. Bd4 {[%emt 0:01:14]} Bd7 {[%emt 0:03:03]} 16. Bf1 {[%emt 0:04:10]} Ng4 {[%emt 0:04:49]} 17. hxg4 {[%emt 0:04:08]} Bxd4 {[%emt 0:02:09]} 18. Nf3 {[%emt 0:13:31]} Bb6 {[%emt 0:00:11]} 19. g5 {[%emt 0:00:19]} Bg4 {[%emt 0:21:58]} 20. Nh2 {[%emt 0:01:33]} Bf5 {[%emt 0:05:16]} 21. Qd2 {[%emt 0:01:00]} Re4 {[%emt 0:00:52]} 22. Nf3 {[%emt 0:01:43]} Qg3 {[%emt 0:14:48]} 23. Nd4 {[%emt 0:04:01]} Qd6 {[%emt 0:03:16]} 24. g3 {[%emt 0:03:56]} Rae8 {[%emt 0:01:41]} 25. Bg2 {[%emt 0:00:11]} Rxe1+ {[%emt 0:02:42]} 26. Rxe1 {[%emt 0:00:05]} Rxe1+ {[%emt 0:01:54]} 27. Qxe1 {[%emt 0:00:03]} Bd7 {[%emt 0:00:33]} 28. Qe3 {[%emt 0:01:12]} Kg7 {[%emt 0:03:09]} 29. Kh2 {[%emt 0:01:13]} Bd8 {[%emt 0:01:28]} 30. Qd2 {[%emt 0:02:25]} Bb6 {[%emt 0:01:05]} 31. Nc2 {[%emt 0:01:48]} Be6 {[%emt 0:01:58]} 32. Nd4 {[%emt 0:01:17]} Bd7 {[%emt 0:00:11]} 33. Kg1 {[%emt 0:00:47]} Qe5 {[%emt 0:00:52]} 34. f4 {[%emt 0:01:44]} Qd6 {[%emt 0:00:13]} 35. Kh2 {[%emt 0:00:42]} Bc6 {[%emt 0:00:56]} 36. b4 {[%emt 0:01:43]} Kf8 {[%emt 0:00:52]} 37. a3 {[%emt 0:00:45]} Ke7 {[%emt 0:00:19]} 38. Nf3 {[%emt 0:00:45]} Qe6 {[%emt 0:00:25]} 39. Ne5 {[%emt 0:00:12]} Bc7 {[%emt 0:00:27]} 40. Bh3 {[%emt 0:00:14]} Qd6 {[%emt 0:00:48]} 41. Qe3 {[%emt 0:31:12]} Kf8 {[%emt 0:05:33]} 42. Qxa7 {[%emt 0:00:00]} Qe7 {[%emt 0:11:47]} 43. Qd4 {[%emt 0:00:00]} Kg8 {[%emt 0:09:02]} 44. Bg2 {[%emt 0:00:00]} Qe6 {[%emt 0:00:24]} 45. a4 {[%emt 0:00:00]} Bxa4 {[%emt 0:02:13]} 46. Bxd5 {[%emt 0:00:00]} Qa6 {[%emt 0:04:04]} 47. Bxf7+ {[%emt 0:00:00]} Kf8 {[%emt 0:00:06]} 48. Bc4 {[%emt 0:00:00]} b5 {[%emt 0:00:26]} 49. Qd7 {[%emt 0:00:00]} 1-0